{"text_format":"3","workbook":"xlsx","n_sheets":3,"sheets":["Urnik","Vnos podatkov","Iskanje imena"],"not_rendered":{"defined_names":5},"read":"whole","date_system":"1900"}

{"sheet":"Urnik","index":0,"n_rows":23,"n_cols":9,"rows_kept":23,"merged":[[1,1,2,3]]}
[]
[null,"DNEVNI URNIK",{"$nulls":4},"Za teden ","Prikaži urnik za: "]
[{"$nulls":5},{"$f":"WEEKDAY(Teden,1)","v":3},"2012-07-03","Damjan"]
[null,null,{"$f":"$F$3=COLUMN(A$1)","v":false},{"$f":"$F$3=COLUMN(B$1)","v":false},true,false,false,false,false]
[null,null,{"$f":"COLUMN(A$1)-MATCH(TRUE,$C$4:$I$4,0)+Teden+1","v":"2012-07-02"},"2012-07-03","2012-07-04","2012-07-05","2012-07-06","2012-07-07","2012-07-08"]
[null,"ČAS","PONEDELJEK","TOREK","SREDA","ČETRTEK","PETEK","SOBOTA","NEDELJA"]
[null,"06:00:00",{"$f":"IFERROR(INDEX(tblPodatki[],MATCH(C$5+$B7&PrikažiIme,tblPodatki[DATUM IN ČAS]&tblPodatki[KDO],0),3),\"\")","v":""},{"$f":"IFERROR(INDEX(tblPodatki[],MATCH(D$5+$B7&PrikažiIme,tblPodatki[DATUM IN ČAS]&tblPodatki[KDO],0),3),\"\")","v":""},{"$f":"IFERROR(INDEX(tblPodatki[],MATCH(E$5+$B7&PrikažiIme,tblPodatki[DATUM IN ČAS]&tblPodatki[KDO],0),3),\"\")","v":""},{"$f":"IFERROR(INDEX(tblPodatki[],MATCH(F$5+$B7&PrikažiIme,tblPodatki[DATUM IN ČAS]&tblPodatki[KDO],0),3),\"\")","v":""},{"$f":"IFERROR(INDEX(tblPodatki[],MATCH(G$5+$B7&PrikažiIme,tblPodatki[DATUM IN ČAS]&tblPodatki[KDO],0),3),\"\")","v":""},{"$f":"IFERROR(INDEX(tblPodatki[],MATCH(H$5+$B7&PrikažiIme,tblPodatki[DATUM IN ČAS]&tblPodatki[KDO],0),3),\"\")","v":""},{"$f":"IFERROR(INDEX(tblPodatki[],MATCH(I$5+$B7&PrikažiIme,tblPodatki[DATUM IN ČAS]&tblPodatki[KDO],0),3),\"\")","v":""}]
[null,"07:00:00",{"$f":"IFERROR(INDEX(tblPodatki[],MATCH(C$5+$B8&PrikažiIme,tblPodatki[DATUM IN ČAS]&tblPodatki[KDO],0),3),\"\")","v":""},{"$f":"IFERROR(INDEX(tblPodatki[],MATCH(D$5+$B8&PrikažiIme,tblPodatki[DATUM IN ČAS]&tblPodatki[KDO],0),3),\"\")","v":""},{"$f":"IFERROR(INDEX(tblPodatki[],MATCH(E$5+$B8&PrikažiIme,tblPodatki[DATUM IN ČAS]&tblPodatki[KDO],0),3),\"\")","v":""},{"$f":"IFERROR(INDEX(tblPodatki[],MATCH(F$5+$B8&PrikažiIme,tblPodatki[DATUM IN ČAS]&tblPodatki[KDO],0),3),\"\")","v":""},{"$f":"IFERROR(INDEX(tblPodatki[],MATCH(G$5+$B8&PrikažiIme,tblPodatki[DATUM IN ČAS]&tblPodatki[KDO],0),3),\"\")","v":""},{"$f":"IFERROR(INDEX(tblPodatki[],MATCH(H$5+$B8&PrikažiIme,tblPodatki[DATUM IN ČAS]&tblPodatki[KDO],0),3),\"\")","v":""},{"$f":"IFERROR(INDEX(tblPodatki[],MATCH(I$5+$B8&PrikažiIme,tblPodatki[DATUM IN ČAS]&tblPodatki[KDO],0),3),\"\")","v":""}]
[null,"08:00:00",{"$f":"IFERROR(INDEX(tblPodatki[],MATCH(C$5+$B9&PrikažiIme,tblPodatki[DATUM IN ČAS]&tblPodatki[KDO],0),3),\"\")","v":""},{"$f":"IFERROR(INDEX(tblPodatki[],MATCH(D$5+$B9&PrikažiIme,tblPodatki[DATUM IN ČAS]&tblPodatki[KDO],0),3),\"\")","v":""},{"$f":"IFERROR(INDEX(tblPodatki[],MATCH(E$5+$B9&PrikažiIme,tblPodatki[DATUM IN ČAS]&tblPodatki[KDO],0),3),\"\")","v":""},{"$f":"IFERROR(INDEX(tblPodatki[],MATCH(F$5+$B9&PrikažiIme,tblPodatki[DATUM IN ČAS]&tblPodatki[KDO],0),3),\"\")","v":""},{"$f":"IFERROR(INDEX(tblPodatki[],MATCH(G$5+$B9&PrikažiIme,tblPodatki[DATUM IN ČAS]&tblPodatki[KDO],0),3),\"\")","v":""},{"$f":"IFERROR(INDEX(tblPodatki[],MATCH(H$5+$B9&PrikažiIme,tblPodatki[DATUM IN ČAS]&tblPodatki[KDO],0),3),\"\")","v":""},{"$f":"IFERROR(INDEX(tblPodatki[],MATCH(I$5+$B9&PrikažiIme,tblPodatki[DATUM IN ČAS]&tblPodatki[KDO],0),3),\"\")","v":""}]
[null,"09:00:00",{"$f":"IFERROR(INDEX(tblPodatki[],MATCH(C$5+$B10&PrikažiIme,tblPodatki[DATUM IN ČAS]&tblPodatki[KDO],0),3),\"\")","v":""},{"$f":"IFERROR(INDEX(tblPodatki[],MATCH(D$5+$B10&PrikažiIme,tblPodatki[DATUM IN ČAS]&tblPodatki[KDO],0),3),\"\")","v":""},{"$f":"IFERROR(INDEX(tblPodatki[],MATCH(E$5+$B10&PrikažiIme,tblPodatki[DATUM IN ČAS]&tblPodatki[KDO],0),3),\"\")","v":""},{"$f":"IFERROR(INDEX(tblPodatki[],MATCH(F$5+$B10&PrikažiIme,tblPodatki[DATUM IN ČAS]&tblPodatki[KDO],0),3),\"\")","v":""},{"$f":"IFERROR(INDEX(tblPodatki[],MATCH(G$5+$B10&PrikažiIme,tblPodatki[DATUM IN ČAS]&tblPodatki[KDO],0),3),\"\")","v":""},{"$f":"IFERROR(INDEX(tblPodatki[],MATCH(H$5+$B10&PrikažiIme,tblPodatki[DATUM IN ČAS]&tblPodatki[KDO],0),3),\"\")","v":""},{"$f":"IFERROR(INDEX(tblPodatki[],MATCH(I$5+$B10&PrikažiIme,tblPodatki[DATUM IN ČAS]&tblPodatki[KDO],0),3),\"\")","v":""}]
[null,"10:00:00",{"$f":"IFERROR(INDEX(tblPodatki[],MATCH(C$5+$B11&PrikažiIme,tblPodatki[DATUM IN ČAS]&tblPodatki[KDO],0),3),\"\")","v":""},{"$f":"IFERROR(INDEX(tblPodatki[],MATCH(D$5+$B11&PrikažiIme,tblPodatki[DATUM IN ČAS]&tblPodatki[KDO],0),3),\"\")","v":""},{"$f":"IFERROR(INDEX(tblPodatki[],MATCH(E$5+$B11&PrikažiIme,tblPodatki[DATUM IN ČAS]&tblPodatki[KDO],0),3),\"\")","v":"Parada v središču mesta"},{"$f":"IFERROR(INDEX(tblPodatki[],MATCH(F$5+$B11&PrikažiIme,tblPodatki[DATUM IN ČAS]&tblPodatki[KDO],0),3),\"\")","v":""},{"$f":"IFERROR(INDEX(tblPodatki[],MATCH(G$5+$B11&PrikažiIme,tblPodatki[DATUM IN ČAS]&tblPodatki[KDO],0),3),\"\")","v":""},{"$f":"IFERROR(INDEX(tblPodatki[],MATCH(H$5+$B11&PrikažiIme,tblPodatki[DATUM IN ČAS]&tblPodatki[KDO],0),3),\"\")","v":""},{"$f":"IFERROR(INDEX(tblPodatki[],MATCH(I$5+$B11&PrikažiIme,tblPodatki[DATUM IN ČAS]&tblPodatki[KDO],0),3),\"\")","v":""}]
[null,"11:00:00",{"$f":"IFERROR(INDEX(tblPodatki[],MATCH(C$5+$B12&PrikažiIme,tblPodatki[DATUM IN ČAS]&tblPodatki[KDO],0),3),\"\")","v":""},{"$f":"IFERROR(INDEX(tblPodatki[],MATCH(D$5+$B12&PrikažiIme,tblPodatki[DATUM IN ČAS]&tblPodatki[KDO],0),3),\"\")","v":""},{"$f":"IFERROR(INDEX(tblPodatki[],MATCH(E$5+$B12&PrikažiIme,tblPodatki[DATUM IN ČAS]&tblPodatki[KDO],0),3),\"\")","v":""},{"$f":"IFERROR(INDEX(tblPodatki[],MATCH(F$5+$B12&PrikažiIme,tblPodatki[DATUM IN ČAS]&tblPodatki[KDO],0),3),\"\")","v":""},{"$f":"IFERROR(INDEX(tblPodatki[],MATCH(G$5+$B12&PrikažiIme,tblPodatki[DATUM IN ČAS]&tblPodatki[KDO],0),3),\"\")","v":"Družinski piknik z žarom"},{"$f":"IFERROR(INDEX(tblPodatki[],MATCH(H$5+$B12&PrikažiIme,tblPodatki[DATUM IN ČAS]&tblPodatki[KDO],0),3),\"\")","v":""},{"$f":"IFERROR(INDEX(tblPodatki[],MATCH(I$5+$B12&PrikažiIme,tblPodatki[DATUM IN ČAS]&tblPodatki[KDO],0),3),\"\")","v":""}]
[null,"12:00:00",{"$f":"IFERROR(INDEX(tblPodatki[],MATCH(C$5+$B13&PrikažiIme,tblPodatki[DATUM IN ČAS]&tblPodatki[KDO],0),3),\"\")","v":""},{"$f":"IFERROR(INDEX(tblPodatki[],MATCH(D$5+$B13&PrikažiIme,tblPodatki[DATUM IN ČAS]&tblPodatki[KDO],0),3),\"\")","v":""},{"$f":"IFERROR(INDEX(tblPodatki[],MATCH(E$5+$B13&PrikažiIme,tblPodatki[DATUM IN ČAS]&tblPodatki[KDO],0),3),\"\")","v":""},{"$f":"IFERROR(INDEX(tblPodatki[],MATCH(F$5+$B13&PrikažiIme,tblPodatki[DATUM IN ČAS]&tblPodatki[KDO],0),3),\"\")","v":""},{"$f":"IFERROR(INDEX(tblPodatki[],MATCH(G$5+$B13&PrikažiIme,tblPodatki[DATUM IN ČAS]&tblPodatki[KDO],0),3),\"\")","v":""},{"$f":"IFERROR(INDEX(tblPodatki[],MATCH(H$5+$B13&PrikažiIme,tblPodatki[DATUM IN ČAS]&tblPodatki[KDO],0),3),\"\")","v":""},{"$f":"IFERROR(INDEX(tblPodatki[],MATCH(I$5+$B13&PrikažiIme,tblPodatki[DATUM IN ČAS]&tblPodatki[KDO],0),3),\"\")","v":""}]
[null,"13:00:00",{"$f":"IFERROR(INDEX(tblPodatki[],MATCH(C$5+$B14&PrikažiIme,tblPodatki[DATUM IN ČAS]&tblPodatki[KDO],0),3),\"\")","v":""},{"$f":"IFERROR(INDEX(tblPodatki[],MATCH(D$5+$B14&PrikažiIme,tblPodatki[DATUM IN ČAS]&tblPodatki[KDO],0),3),\"\")","v":""},{"$f":"IFERROR(INDEX(tblPodatki[],MATCH(E$5+$B14&PrikažiIme,tblPodatki[DATUM IN ČAS]&tblPodatki[KDO],0),3),\"\")","v":""},{"$f":"IFERROR(INDEX(tblPodatki[],MATCH(F$5+$B14&PrikažiIme,tblPodatki[DATUM IN ČAS]&tblPodatki[KDO],0),3),\"\")","v":""},{"$f":"IFERROR(INDEX(tblPodatki[],MATCH(G$5+$B14&PrikažiIme,tblPodatki[DATUM IN ČAS]&tblPodatki[KDO],0),3),\"\")","v":""},{"$f":"IFERROR(INDEX(tblPodatki[],MATCH(H$5+$B14&PrikažiIme,tblPodatki[DATUM IN ČAS]&tblPodatki[KDO],0),3),\"\")","v":""},{"$f":"IFERROR(INDEX(tblPodatki[],MATCH(I$5+$B14&PrikažiIme,tblPodatki[DATUM IN ČAS]&tblPodatki[KDO],0),3),\"\")","v":""}]
[null,"14:00:00",{"$f":"IFERROR(INDEX(tblPodatki[],MATCH(C$5+$B15&PrikažiIme,tblPodatki[DATUM IN ČAS]&tblPodatki[KDO],0),3),\"\")","v":""},{"$f":"IFERROR(INDEX(tblPodatki[],MATCH(D$5+$B15&PrikažiIme,tblPodatki[DATUM IN ČAS]&tblPodatki[KDO],0),3),\"\")","v":""},{"$f":"IFERROR(INDEX(tblPodatki[],MATCH(E$5+$B15&PrikažiIme,tblPodatki[DATUM IN ČAS]&tblPodatki[KDO],0),3),\"\")","v":""},{"$f":"IFERROR(INDEX(tblPodatki[],MATCH(F$5+$B15&PrikažiIme,tblPodatki[DATUM IN ČAS]&tblPodatki[KDO],0),3),\"\")","v":""},{"$f":"IFERROR(INDEX(tblPodatki[],MATCH(G$5+$B15&PrikažiIme,tblPodatki[DATUM IN ČAS]&tblPodatki[KDO],0),3),\"\")","v":""},{"$f":"IFERROR(INDEX(tblPodatki[],MATCH(H$5+$B15&PrikažiIme,tblPodatki[DATUM IN ČAS]&tblPodatki[KDO],0),3),\"\")","v":""},{"$f":"IFERROR(INDEX(tblPodatki[],MATCH(I$5+$B15&PrikažiIme,tblPodatki[DATUM IN ČAS]&tblPodatki[KDO],0),3),\"\")","v":""}]
[null,"15:00:00",{"$f":"IFERROR(INDEX(tblPodatki[],MATCH(C$5+$B16&PrikažiIme,tblPodatki[DATUM IN ČAS]&tblPodatki[KDO],0),3),\"\")","v":""},{"$f":"IFERROR(INDEX(tblPodatki[],MATCH(D$5+$B16&PrikažiIme,tblPodatki[DATUM IN ČAS]&tblPodatki[KDO],0),3),\"\")","v":""},{"$f":"IFERROR(INDEX(tblPodatki[],MATCH(E$5+$B16&PrikažiIme,tblPodatki[DATUM IN ČAS]&tblPodatki[KDO],0),3),\"\")","v":""},{"$f":"IFERROR(INDEX(tblPodatki[],MATCH(F$5+$B16&PrikažiIme,tblPodatki[DATUM IN ČAS]&tblPodatki[KDO],0),3),\"\")","v":""},{"$f":"IFERROR(INDEX(tblPodatki[],MATCH(G$5+$B16&PrikažiIme,tblPodatki[DATUM IN ČAS]&tblPodatki[KDO],0),3),\"\")","v":""},{"$f":"IFERROR(INDEX(tblPodatki[],MATCH(H$5+$B16&PrikažiIme,tblPodatki[DATUM IN ČAS]&tblPodatki[KDO],0),3),\"\")","v":""},{"$f":"IFERROR(INDEX(tblPodatki[],MATCH(I$5+$B16&PrikažiIme,tblPodatki[DATUM IN ČAS]&tblPodatki[KDO],0),3),\"\")","v":""}]
[null,"16:00:00",{"$f":"IFERROR(INDEX(tblPodatki[],MATCH(C$5+$B17&PrikažiIme,tblPodatki[DATUM IN ČAS]&tblPodatki[KDO],0),3),\"\")","v":""},{"$f":"IFERROR(INDEX(tblPodatki[],MATCH(D$5+$B17&PrikažiIme,tblPodatki[DATUM IN ČAS]&tblPodatki[KDO],0),3),\"\")","v":"Odhod v kočo"},{"$f":"IFERROR(INDEX(tblPodatki[],MATCH(E$5+$B17&PrikažiIme,tblPodatki[DATUM IN ČAS]&tblPodatki[KDO],0),3),\"\")","v":""},{"$f":"IFERROR(INDEX(tblPodatki[],MATCH(F$5+$B17&PrikažiIme,tblPodatki[DATUM IN ČAS]&tblPodatki[KDO],0),3),\"\")","v":""},{"$f":"IFERROR(INDEX(tblPodatki[],MATCH(G$5+$B17&PrikažiIme,tblPodatki[DATUM IN ČAS]&tblPodatki[KDO],0),3),\"\")","v":""},{"$f":"IFERROR(INDEX(tblPodatki[],MATCH(H$5+$B17&PrikažiIme,tblPodatki[DATUM IN ČAS]&tblPodatki[KDO],0),3),\"\")","v":""},{"$f":"IFERROR(INDEX(tblPodatki[],MATCH(I$5+$B17&PrikažiIme,tblPodatki[DATUM IN ČAS]&tblPodatki[KDO],0),3),\"\")","v":""}]
[null,"17:00:00",{"$f":"IFERROR(INDEX(tblPodatki[],MATCH(C$5+$B18&PrikažiIme,tblPodatki[DATUM IN ČAS]&tblPodatki[KDO],0),3),\"\")","v":""},{"$f":"IFERROR(INDEX(tblPodatki[],MATCH(D$5+$B18&PrikažiIme,tblPodatki[DATUM IN ČAS]&tblPodatki[KDO],0),3),\"\")","v":""},{"$f":"IFERROR(INDEX(tblPodatki[],MATCH(E$5+$B18&PrikažiIme,tblPodatki[DATUM IN ČAS]&tblPodatki[KDO],0),3),\"\")","v":""},{"$f":"IFERROR(INDEX(tblPodatki[],MATCH(F$5+$B18&PrikažiIme,tblPodatki[DATUM IN ČAS]&tblPodatki[KDO],0),3),\"\")","v":""},{"$f":"IFERROR(INDEX(tblPodatki[],MATCH(G$5+$B18&PrikažiIme,tblPodatki[DATUM IN ČAS]&tblPodatki[KDO],0),3),\"\")","v":""},{"$f":"IFERROR(INDEX(tblPodatki[],MATCH(H$5+$B18&PrikažiIme,tblPodatki[DATUM IN ČAS]&tblPodatki[KDO],0),3),\"\")","v":""},{"$f":"IFERROR(INDEX(tblPodatki[],MATCH(I$5+$B18&PrikažiIme,tblPodatki[DATUM IN ČAS]&tblPodatki[KDO],0),3),\"\")","v":"Vrnitev domov"}]
[null,"18:00:00",{"$f":"IFERROR(INDEX(tblPodatki[],MATCH(C$5+$B19&PrikažiIme,tblPodatki[DATUM IN ČAS]&tblPodatki[KDO],0),3),\"\")","v":"Vzemi zdravilo"},{"$f":"IFERROR(INDEX(tblPodatki[],MATCH(D$5+$B19&PrikažiIme,tblPodatki[DATUM IN ČAS]&tblPodatki[KDO],0),3),\"\")","v":""},{"$f":"IFERROR(INDEX(tblPodatki[],MATCH(E$5+$B19&PrikažiIme,tblPodatki[DATUM IN ČAS]&tblPodatki[KDO],0),3),\"\")","v":""},{"$f":"IFERROR(INDEX(tblPodatki[],MATCH(F$5+$B19&PrikažiIme,tblPodatki[DATUM IN ČAS]&tblPodatki[KDO],0),3),\"\")","v":""},{"$f":"IFERROR(INDEX(tblPodatki[],MATCH(G$5+$B19&PrikažiIme,tblPodatki[DATUM IN ČAS]&tblPodatki[KDO],0),3),\"\")","v":""},{"$f":"IFERROR(INDEX(tblPodatki[],MATCH(H$5+$B19&PrikažiIme,tblPodatki[DATUM IN ČAS]&tblPodatki[KDO],0),3),\"\")","v":""},{"$f":"IFERROR(INDEX(tblPodatki[],MATCH(I$5+$B19&PrikažiIme,tblPodatki[DATUM IN ČAS]&tblPodatki[KDO],0),3),\"\")","v":""}]
[null,"19:00:00",{"$f":"IFERROR(INDEX(tblPodatki[],MATCH(C$5+$B20&PrikažiIme,tblPodatki[DATUM IN ČAS]&tblPodatki[KDO],0),3),\"\")","v":""},{"$f":"IFERROR(INDEX(tblPodatki[],MATCH(D$5+$B20&PrikažiIme,tblPodatki[DATUM IN ČAS]&tblPodatki[KDO],0),3),\"\")","v":""},{"$f":"IFERROR(INDEX(tblPodatki[],MATCH(E$5+$B20&PrikažiIme,tblPodatki[DATUM IN ČAS]&tblPodatki[KDO],0),3),\"\")","v":""},{"$f":"IFERROR(INDEX(tblPodatki[],MATCH(F$5+$B20&PrikažiIme,tblPodatki[DATUM IN ČAS]&tblPodatki[KDO],0),3),\"\")","v":""},{"$f":"IFERROR(INDEX(tblPodatki[],MATCH(G$5+$B20&PrikažiIme,tblPodatki[DATUM IN ČAS]&tblPodatki[KDO],0),3),\"\")","v":""},{"$f":"IFERROR(INDEX(tblPodatki[],MATCH(H$5+$B20&PrikažiIme,tblPodatki[DATUM IN ČAS]&tblPodatki[KDO],0),3),\"\")","v":""},{"$f":"IFERROR(INDEX(tblPodatki[],MATCH(I$5+$B20&PrikažiIme,tblPodatki[DATUM IN ČAS]&tblPodatki[KDO],0),3),\"\")","v":""}]
[null,"20:00:00",{"$f":"IFERROR(INDEX(tblPodatki[],MATCH(C$5+$B21&PrikažiIme,tblPodatki[DATUM IN ČAS]&tblPodatki[KDO],0),3),\"\")","v":"Film z družino"},{"$f":"IFERROR(INDEX(tblPodatki[],MATCH(D$5+$B21&PrikažiIme,tblPodatki[DATUM IN ČAS]&tblPodatki[KDO],0),3),\"\")","v":""},{"$f":"IFERROR(INDEX(tblPodatki[],MATCH(E$5+$B21&PrikažiIme,tblPodatki[DATUM IN ČAS]&tblPodatki[KDO],0),3),\"\")","v":""},{"$f":"IFERROR(INDEX(tblPodatki[],MATCH(F$5+$B21&PrikažiIme,tblPodatki[DATUM IN ČAS]&tblPodatki[KDO],0),3),\"\")","v":"Ognjemet"},{"$f":"IFERROR(INDEX(tblPodatki[],MATCH(G$5+$B21&PrikažiIme,tblPodatki[DATUM IN ČAS]&tblPodatki[KDO],0),3),\"\")","v":""},{"$f":"IFERROR(INDEX(tblPodatki[],MATCH(H$5+$B21&PrikažiIme,tblPodatki[DATUM IN ČAS]&tblPodatki[KDO],0),3),\"\")","v":""},{"$f":"IFERROR(INDEX(tblPodatki[],MATCH(I$5+$B21&PrikažiIme,tblPodatki[DATUM IN ČAS]&tblPodatki[KDO],0),3),\"\")","v":""}]
[null,"21:00:00",{"$f":"IFERROR(INDEX(tblPodatki[],MATCH(C$5+$B22&PrikažiIme,tblPodatki[DATUM IN ČAS]&tblPodatki[KDO],0),3),\"\")","v":""},{"$f":"IFERROR(INDEX(tblPodatki[],MATCH(D$5+$B22&PrikažiIme,tblPodatki[DATUM IN ČAS]&tblPodatki[KDO],0),3),\"\")","v":""},{"$f":"IFERROR(INDEX(tblPodatki[],MATCH(E$5+$B22&PrikažiIme,tblPodatki[DATUM IN ČAS]&tblPodatki[KDO],0),3),\"\")","v":""},{"$f":"IFERROR(INDEX(tblPodatki[],MATCH(F$5+$B22&PrikažiIme,tblPodatki[DATUM IN ČAS]&tblPodatki[KDO],0),3),\"\")","v":""},{"$f":"IFERROR(INDEX(tblPodatki[],MATCH(G$5+$B22&PrikažiIme,tblPodatki[DATUM IN ČAS]&tblPodatki[KDO],0),3),\"\")","v":""},{"$f":"IFERROR(INDEX(tblPodatki[],MATCH(H$5+$B22&PrikažiIme,tblPodatki[DATUM IN ČAS]&tblPodatki[KDO],0),3),\"\")","v":""},{"$f":"IFERROR(INDEX(tblPodatki[],MATCH(I$5+$B22&PrikažiIme,tblPodatki[DATUM IN ČAS]&tblPodatki[KDO],0),3),\"\")","v":""}]
[null,"22:00:00",{"$f":"IFERROR(INDEX(tblPodatki[],MATCH(C$5+$B23&PrikažiIme,#REF!&#REF!,0),3),\"\")","v":""},{"$f":"IFERROR(INDEX(tblPodatki[],MATCH(D$5+$B23&PrikažiIme,#REF!&#REF!,0),3),\"\")","v":""},{"$f":"IFERROR(INDEX(tblPodatki[],MATCH(E$5+$B23&PrikažiIme,#REF!&#REF!,0),3),\"\")","v":""},{"$f":"IFERROR(INDEX(tblPodatki[],MATCH(F$5+$B23&PrikažiIme,#REF!&#REF!,0),3),\"\")","v":""},{"$f":"IFERROR(INDEX(tblPodatki[],MATCH(G$5+$B23&PrikažiIme,#REF!&#REF!,0),3),\"\")","v":""},{"$f":"IFERROR(INDEX(tblPodatki[],MATCH(H$5+$B23&PrikažiIme,#REF!&#REF!,0),3),\"\")","v":""},{"$f":"IFERROR(INDEX(tblPodatki[],MATCH(I$5+$B23&PrikažiIme,#REF!&#REF!,0),3),\"\")","v":""}]

{"sheet":"Vnos podatkov","index":1,"n_rows":14,"n_cols":4,"rows_kept":14}
[null,"VNOS PODATKOV"]
[]
[null,"DATUM IN ČAS","KDO","OPRAVILO"]
[null,"2012-07-02T08:00:00","Barbara","Obisk zdravnika"]
[null,"2012-07-02T18:00:00","Damjan","Vzemi zdravilo"]
[null,"2012-07-02T18:30:00","Damjan","Večerja s Rokom"]
[null,"2012-07-02T20:00:00","Damjan","Film z družino"]
[null,"2012-07-03T16:00:00","Damjan","Odhod v kočo"]
[null,"2012-07-04T10:00:00","Damjan","Parada v središču mesta"]
[null,"2012-07-05T20:00:00","Damjan","Ognjemet"]
[null,"2012-07-06T11:00:00","Damjan","Družinski piknik z žarom"]
[null,"2012-07-07","Damjan","Piknik celotne skupnosti"]
[null,"2012-07-08T17:00:00","Damjan","Vrnitev domov"]
[null,"2012-07-02T10:00:00","Barbara","Učne ure klavirja"]

{"sheet":"Iskanje imena","index":2,"n_rows":132,"n_cols":2,"rows_kept":132,"hidden":true,"merged":[[0,0,0,1]]}
["Ta list izpolnjuje spustni seznam imen na listu urnika v celici H3.  Kakršne koli spremembe na tem listu lahko povzročijo napako."]
["UNIKATNO IME","ŠTEVILKA VRSTICE"]
[{"$f":"IFERROR(INDEX(PoljeKdo,MATCH(0,COUNTIF($A$2:A2,PoljeKdo),0)),\"\")","v":"Barbara"},{"$f":"IF(A3=\"\",\"\",ROW())","v":3}]
[{"$f":"IFERROR(INDEX(PoljeKdo,MATCH(0,COUNTIF($A$2:A3,PoljeKdo),0)),\"\")","v":"Damjan"},{"$f":"IF(A4=\"\",\"\",ROW())","v":4}]
[{"$f":"IFERROR(INDEX(PoljeKdo,MATCH(0,COUNTIF($A$2:A4,PoljeKdo),0)),\"\")","v":""},""]
[{"$f":"IFERROR(INDEX(PoljeKdo,MATCH(0,COUNTIF($A$2:A5,PoljeKdo),0)),\"\")","v":""},""]
[{"$f":"IFERROR(INDEX(PoljeKdo,MATCH(0,COUNTIF($A$2:A6,PoljeKdo),0)),\"\")","v":""},""]
[{"$f":"IFERROR(INDEX(PoljeKdo,MATCH(0,COUNTIF($A$2:A7,PoljeKdo),0)),\"\")","v":""},""]
[{"$f":"IFERROR(INDEX(PoljeKdo,MATCH(0,COUNTIF($A$2:A8,PoljeKdo),0)),\"\")","v":""},""]
[{"$f":"IFERROR(INDEX(PoljeKdo,MATCH(0,COUNTIF($A$2:A9,PoljeKdo),0)),\"\")","v":""},""]
[{"$f":"IFERROR(INDEX(PoljeKdo,MATCH(0,COUNTIF($A$2:A10,PoljeKdo),0)),\"\")","v":""},""]
[{"$f":"IFERROR(INDEX(PoljeKdo,MATCH(0,COUNTIF($A$2:A11,PoljeKdo),0)),\"\")","v":""},""]
[{"$f":"IFERROR(INDEX(PoljeKdo,MATCH(0,COUNTIF($A$2:A12,PoljeKdo),0)),\"\")","v":""},""]
[{"$f":"IFERROR(INDEX(PoljeKdo,MATCH(0,COUNTIF($A$2:A13,PoljeKdo),0)),\"\")","v":""},""]
[{"$f":"IFERROR(INDEX(PoljeKdo,MATCH(0,COUNTIF($A$2:A14,PoljeKdo),0)),\"\")","v":""},""]
[{"$f":"IFERROR(INDEX(PoljeKdo,MATCH(0,COUNTIF($A$2:A15,PoljeKdo),0)),\"\")","v":""},""]
[{"$f":"IFERROR(INDEX(PoljeKdo,MATCH(0,COUNTIF($A$2:A16,PoljeKdo),0)),\"\")","v":""},""]
[{"$f":"IFERROR(INDEX(PoljeKdo,MATCH(0,COUNTIF($A$2:A17,PoljeKdo),0)),\"\")","v":""},""]
[{"$f":"IFERROR(INDEX(PoljeKdo,MATCH(0,COUNTIF($A$2:A18,PoljeKdo),0)),\"\")","v":""},""]
[{"$f":"IFERROR(INDEX(PoljeKdo,MATCH(0,COUNTIF($A$2:A19,PoljeKdo),0)),\"\")","v":""},""]
[{"$f":"IFERROR(INDEX(PoljeKdo,MATCH(0,COUNTIF($A$2:A20,PoljeKdo),0)),\"\")","v":""},""]
[{"$f":"IFERROR(INDEX(PoljeKdo,MATCH(0,COUNTIF($A$2:A21,PoljeKdo),0)),\"\")","v":""},""]
[{"$f":"IFERROR(INDEX(PoljeKdo,MATCH(0,COUNTIF($A$2:A22,PoljeKdo),0)),\"\")","v":""},""]
[{"$f":"IFERROR(INDEX(PoljeKdo,MATCH(0,COUNTIF($A$2:A23,PoljeKdo),0)),\"\")","v":""},""]
[{"$f":"IFERROR(INDEX(PoljeKdo,MATCH(0,COUNTIF($A$2:A24,PoljeKdo),0)),\"\")","v":""},""]
[{"$f":"IFERROR(INDEX(PoljeKdo,MATCH(0,COUNTIF($A$2:A25,PoljeKdo),0)),\"\")","v":""},""]
[{"$f":"IFERROR(INDEX(PoljeKdo,MATCH(0,COUNTIF($A$2:A26,PoljeKdo),0)),\"\")","v":""},""]
[{"$f":"IFERROR(INDEX(PoljeKdo,MATCH(0,COUNTIF($A$2:A27,PoljeKdo),0)),\"\")","v":""},""]
[{"$f":"IFERROR(INDEX(PoljeKdo,MATCH(0,COUNTIF($A$2:A28,PoljeKdo),0)),\"\")","v":""},""]
[{"$f":"IFERROR(INDEX(PoljeKdo,MATCH(0,COUNTIF($A$2:A29,PoljeKdo),0)),\"\")","v":""},""]
[{"$f":"IFERROR(INDEX(PoljeKdo,MATCH(0,COUNTIF($A$2:A30,PoljeKdo),0)),\"\")","v":""},""]
[{"$f":"IFERROR(INDEX(PoljeKdo,MATCH(0,COUNTIF($A$2:A31,PoljeKdo),0)),\"\")","v":""},""]
[{"$f":"IFERROR(INDEX(PoljeKdo,MATCH(0,COUNTIF($A$2:A32,PoljeKdo),0)),\"\")","v":""},""]
[{"$f":"IFERROR(INDEX(PoljeKdo,MATCH(0,COUNTIF($A$2:A33,PoljeKdo),0)),\"\")","v":""},""]
[{"$f":"IFERROR(INDEX(PoljeKdo,MATCH(0,COUNTIF($A$2:A34,PoljeKdo),0)),\"\")","v":""},""]
[{"$f":"IFERROR(INDEX(PoljeKdo,MATCH(0,COUNTIF($A$2:A35,PoljeKdo),0)),\"\")","v":""},""]
[{"$f":"IFERROR(INDEX(PoljeKdo,MATCH(0,COUNTIF($A$2:A36,PoljeKdo),0)),\"\")","v":""},""]
[{"$f":"IFERROR(INDEX(PoljeKdo,MATCH(0,COUNTIF($A$2:A37,PoljeKdo),0)),\"\")","v":""},""]
[{"$f":"IFERROR(INDEX(PoljeKdo,MATCH(0,COUNTIF($A$2:A38,PoljeKdo),0)),\"\")","v":""},""]
[{"$f":"IFERROR(INDEX(PoljeKdo,MATCH(0,COUNTIF($A$2:A39,PoljeKdo),0)),\"\")","v":""},""]
[{"$f":"IFERROR(INDEX(PoljeKdo,MATCH(0,COUNTIF($A$2:A40,PoljeKdo),0)),\"\")","v":""},""]
[{"$f":"IFERROR(INDEX(PoljeKdo,MATCH(0,COUNTIF($A$2:A41,PoljeKdo),0)),\"\")","v":""},""]
[{"$f":"IFERROR(INDEX(PoljeKdo,MATCH(0,COUNTIF($A$2:A42,PoljeKdo),0)),\"\")","v":""},""]
[{"$f":"IFERROR(INDEX(PoljeKdo,MATCH(0,COUNTIF($A$2:A43,PoljeKdo),0)),\"\")","v":""},""]
[{"$f":"IFERROR(INDEX(PoljeKdo,MATCH(0,COUNTIF($A$2:A44,PoljeKdo),0)),\"\")","v":""},""]
[{"$f":"IFERROR(INDEX(PoljeKdo,MATCH(0,COUNTIF($A$2:A45,PoljeKdo),0)),\"\")","v":""},""]
[{"$f":"IFERROR(INDEX(PoljeKdo,MATCH(0,COUNTIF($A$2:A46,PoljeKdo),0)),\"\")","v":""},""]
[{"$f":"IFERROR(INDEX(PoljeKdo,MATCH(0,COUNTIF($A$2:A47,PoljeKdo),0)),\"\")","v":""},""]
[{"$f":"IFERROR(INDEX(PoljeKdo,MATCH(0,COUNTIF($A$2:A48,PoljeKdo),0)),\"\")","v":""},""]
[{"$f":"IFERROR(INDEX(PoljeKdo,MATCH(0,COUNTIF($A$2:A49,PoljeKdo),0)),\"\")","v":""},""]
[{"$f":"IFERROR(INDEX(PoljeKdo,MATCH(0,COUNTIF($A$2:A50,PoljeKdo),0)),\"\")","v":""},""]
[{"$f":"IFERROR(INDEX(PoljeKdo,MATCH(0,COUNTIF($A$2:A51,PoljeKdo),0)),\"\")","v":""},""]
[{"$f":"IFERROR(INDEX(PoljeKdo,MATCH(0,COUNTIF($A$2:A52,PoljeKdo),0)),\"\")","v":""},""]
[{"$f":"IFERROR(INDEX(PoljeKdo,MATCH(0,COUNTIF($A$2:A53,PoljeKdo),0)),\"\")","v":""},""]
[{"$f":"IFERROR(INDEX(PoljeKdo,MATCH(0,COUNTIF($A$2:A54,PoljeKdo),0)),\"\")","v":""},""]
[{"$f":"IFERROR(INDEX(PoljeKdo,MATCH(0,COUNTIF($A$2:A55,PoljeKdo),0)),\"\")","v":""},""]
[{"$f":"IFERROR(INDEX(PoljeKdo,MATCH(0,COUNTIF($A$2:A56,PoljeKdo),0)),\"\")","v":""},""]
[{"$f":"IFERROR(INDEX(PoljeKdo,MATCH(0,COUNTIF($A$2:A57,PoljeKdo),0)),\"\")","v":""},""]
[{"$f":"IFERROR(INDEX(PoljeKdo,MATCH(0,COUNTIF($A$2:A58,PoljeKdo),0)),\"\")","v":""},""]
[{"$f":"IFERROR(INDEX(PoljeKdo,MATCH(0,COUNTIF($A$2:A59,PoljeKdo),0)),\"\")","v":""},""]
[{"$f":"IFERROR(INDEX(PoljeKdo,MATCH(0,COUNTIF($A$2:A60,PoljeKdo),0)),\"\")","v":""},""]
[{"$f":"IFERROR(INDEX(PoljeKdo,MATCH(0,COUNTIF($A$2:A61,PoljeKdo),0)),\"\")","v":""},""]
[{"$f":"IFERROR(INDEX(PoljeKdo,MATCH(0,COUNTIF($A$2:A62,PoljeKdo),0)),\"\")","v":""},""]
[{"$f":"IFERROR(INDEX(PoljeKdo,MATCH(0,COUNTIF($A$2:A63,PoljeKdo),0)),\"\")","v":""},""]
[{"$f":"IFERROR(INDEX(PoljeKdo,MATCH(0,COUNTIF($A$2:A64,PoljeKdo),0)),\"\")","v":""},""]
[{"$f":"IFERROR(INDEX(PoljeKdo,MATCH(0,COUNTIF($A$2:A65,PoljeKdo),0)),\"\")","v":""},""]
[{"$f":"IFERROR(INDEX(PoljeKdo,MATCH(0,COUNTIF($A$2:A66,PoljeKdo),0)),\"\")","v":""},""]
[{"$f":"IFERROR(INDEX(PoljeKdo,MATCH(0,COUNTIF($A$2:A67,PoljeKdo),0)),\"\")","v":""},{"$f":"IF(A68=\"\",\"\",ROW())","v":""}]
[{"$f":"IFERROR(INDEX(PoljeKdo,MATCH(0,COUNTIF($A$2:A68,PoljeKdo),0)),\"\")","v":""},""]
[{"$f":"IFERROR(INDEX(PoljeKdo,MATCH(0,COUNTIF($A$2:A69,PoljeKdo),0)),\"\")","v":""},""]
[{"$f":"IFERROR(INDEX(PoljeKdo,MATCH(0,COUNTIF($A$2:A70,PoljeKdo),0)),\"\")","v":""},""]
[{"$f":"IFERROR(INDEX(PoljeKdo,MATCH(0,COUNTIF($A$2:A71,PoljeKdo),0)),\"\")","v":""},""]
[{"$f":"IFERROR(INDEX(PoljeKdo,MATCH(0,COUNTIF($A$2:A72,PoljeKdo),0)),\"\")","v":""},""]
[{"$f":"IFERROR(INDEX(PoljeKdo,MATCH(0,COUNTIF($A$2:A73,PoljeKdo),0)),\"\")","v":""},""]
[{"$f":"IFERROR(INDEX(PoljeKdo,MATCH(0,COUNTIF($A$2:A74,PoljeKdo),0)),\"\")","v":""},""]
[{"$f":"IFERROR(INDEX(PoljeKdo,MATCH(0,COUNTIF($A$2:A75,PoljeKdo),0)),\"\")","v":""},""]
[{"$f":"IFERROR(INDEX(PoljeKdo,MATCH(0,COUNTIF($A$2:A76,PoljeKdo),0)),\"\")","v":""},""]
[{"$f":"IFERROR(INDEX(PoljeKdo,MATCH(0,COUNTIF($A$2:A77,PoljeKdo),0)),\"\")","v":""},""]
[{"$f":"IFERROR(INDEX(PoljeKdo,MATCH(0,COUNTIF($A$2:A78,PoljeKdo),0)),\"\")","v":""},""]
[{"$f":"IFERROR(INDEX(PoljeKdo,MATCH(0,COUNTIF($A$2:A79,PoljeKdo),0)),\"\")","v":""},""]
[{"$f":"IFERROR(INDEX(PoljeKdo,MATCH(0,COUNTIF($A$2:A80,PoljeKdo),0)),\"\")","v":""},""]
[{"$f":"IFERROR(INDEX(PoljeKdo,MATCH(0,COUNTIF($A$2:A81,PoljeKdo),0)),\"\")","v":""},""]
[{"$f":"IFERROR(INDEX(PoljeKdo,MATCH(0,COUNTIF($A$2:A82,PoljeKdo),0)),\"\")","v":""},""]
[{"$f":"IFERROR(INDEX(PoljeKdo,MATCH(0,COUNTIF($A$2:A83,PoljeKdo),0)),\"\")","v":""},""]
[{"$f":"IFERROR(INDEX(PoljeKdo,MATCH(0,COUNTIF($A$2:A84,PoljeKdo),0)),\"\")","v":""},""]
[{"$f":"IFERROR(INDEX(PoljeKdo,MATCH(0,COUNTIF($A$2:A85,PoljeKdo),0)),\"\")","v":""},""]
[{"$f":"IFERROR(INDEX(PoljeKdo,MATCH(0,COUNTIF($A$2:A86,PoljeKdo),0)),\"\")","v":""},""]
[{"$f":"IFERROR(INDEX(PoljeKdo,MATCH(0,COUNTIF($A$2:A87,PoljeKdo),0)),\"\")","v":""},""]
[{"$f":"IFERROR(INDEX(PoljeKdo,MATCH(0,COUNTIF($A$2:A88,PoljeKdo),0)),\"\")","v":""},""]
[{"$f":"IFERROR(INDEX(PoljeKdo,MATCH(0,COUNTIF($A$2:A89,PoljeKdo),0)),\"\")","v":""},""]
[{"$f":"IFERROR(INDEX(PoljeKdo,MATCH(0,COUNTIF($A$2:A90,PoljeKdo),0)),\"\")","v":""},""]
[{"$f":"IFERROR(INDEX(PoljeKdo,MATCH(0,COUNTIF($A$2:A91,PoljeKdo),0)),\"\")","v":""},""]
[{"$f":"IFERROR(INDEX(PoljeKdo,MATCH(0,COUNTIF($A$2:A92,PoljeKdo),0)),\"\")","v":""},""]
[{"$f":"IFERROR(INDEX(PoljeKdo,MATCH(0,COUNTIF($A$2:A93,PoljeKdo),0)),\"\")","v":""},""]
[{"$f":"IFERROR(INDEX(PoljeKdo,MATCH(0,COUNTIF($A$2:A94,PoljeKdo),0)),\"\")","v":""},""]
[{"$f":"IFERROR(INDEX(PoljeKdo,MATCH(0,COUNTIF($A$2:A95,PoljeKdo),0)),\"\")","v":""},""]
[{"$f":"IFERROR(INDEX(PoljeKdo,MATCH(0,COUNTIF($A$2:A96,PoljeKdo),0)),\"\")","v":""},""]
[{"$f":"IFERROR(INDEX(PoljeKdo,MATCH(0,COUNTIF($A$2:A97,PoljeKdo),0)),\"\")","v":""},""]
[{"$f":"IFERROR(INDEX(PoljeKdo,MATCH(0,COUNTIF($A$2:A98,PoljeKdo),0)),\"\")","v":""},""]
[{"$f":"IFERROR(INDEX(PoljeKdo,MATCH(0,COUNTIF($A$2:A99,PoljeKdo),0)),\"\")","v":""},""]
[{"$f":"IFERROR(INDEX(PoljeKdo,MATCH(0,COUNTIF($A$2:A100,PoljeKdo),0)),\"\")","v":""},""]
[{"$f":"IFERROR(INDEX(PoljeKdo,MATCH(0,COUNTIF($A$2:A101,PoljeKdo),0)),\"\")","v":""},""]
[{"$f":"IFERROR(INDEX(PoljeKdo,MATCH(0,COUNTIF($A$2:A102,PoljeKdo),0)),\"\")","v":""},""]
[{"$f":"IFERROR(INDEX(PoljeKdo,MATCH(0,COUNTIF($A$2:A103,PoljeKdo),0)),\"\")","v":""},""]
[{"$f":"IFERROR(INDEX(PoljeKdo,MATCH(0,COUNTIF($A$2:A104,PoljeKdo),0)),\"\")","v":""},""]
[{"$f":"IFERROR(INDEX(PoljeKdo,MATCH(0,COUNTIF($A$2:A105,PoljeKdo),0)),\"\")","v":""},""]
[{"$f":"IFERROR(INDEX(PoljeKdo,MATCH(0,COUNTIF($A$2:A106,PoljeKdo),0)),\"\")","v":""},""]
[{"$f":"IFERROR(INDEX(PoljeKdo,MATCH(0,COUNTIF($A$2:A107,PoljeKdo),0)),\"\")","v":""},""]
[{"$f":"IFERROR(INDEX(PoljeKdo,MATCH(0,COUNTIF($A$2:A108,PoljeKdo),0)),\"\")","v":""},""]
[{"$f":"IFERROR(INDEX(PoljeKdo,MATCH(0,COUNTIF($A$2:A109,PoljeKdo),0)),\"\")","v":""},""]
[{"$f":"IFERROR(INDEX(PoljeKdo,MATCH(0,COUNTIF($A$2:A110,PoljeKdo),0)),\"\")","v":""},""]
[{"$f":"IFERROR(INDEX(PoljeKdo,MATCH(0,COUNTIF($A$2:A111,PoljeKdo),0)),\"\")","v":""},""]
[{"$f":"IFERROR(INDEX(PoljeKdo,MATCH(0,COUNTIF($A$2:A112,PoljeKdo),0)),\"\")","v":""},""]
[{"$f":"IFERROR(INDEX(PoljeKdo,MATCH(0,COUNTIF($A$2:A113,PoljeKdo),0)),\"\")","v":""},""]
[{"$f":"IFERROR(INDEX(PoljeKdo,MATCH(0,COUNTIF($A$2:A114,PoljeKdo),0)),\"\")","v":""},""]
[{"$f":"IFERROR(INDEX(PoljeKdo,MATCH(0,COUNTIF($A$2:A115,PoljeKdo),0)),\"\")","v":""},""]
[{"$f":"IFERROR(INDEX(PoljeKdo,MATCH(0,COUNTIF($A$2:A116,PoljeKdo),0)),\"\")","v":""},""]
[{"$f":"IFERROR(INDEX(PoljeKdo,MATCH(0,COUNTIF($A$2:A117,PoljeKdo),0)),\"\")","v":""},""]
[{"$f":"IFERROR(INDEX(PoljeKdo,MATCH(0,COUNTIF($A$2:A118,PoljeKdo),0)),\"\")","v":""},""]
[{"$f":"IFERROR(INDEX(PoljeKdo,MATCH(0,COUNTIF($A$2:A119,PoljeKdo),0)),\"\")","v":""},""]
[{"$f":"IFERROR(INDEX(PoljeKdo,MATCH(0,COUNTIF($A$2:A120,PoljeKdo),0)),\"\")","v":""},""]
[{"$f":"IFERROR(INDEX(PoljeKdo,MATCH(0,COUNTIF($A$2:A121,PoljeKdo),0)),\"\")","v":""},""]
[{"$f":"IFERROR(INDEX(PoljeKdo,MATCH(0,COUNTIF($A$2:A122,PoljeKdo),0)),\"\")","v":""},""]
[{"$f":"IFERROR(INDEX(PoljeKdo,MATCH(0,COUNTIF($A$2:A123,PoljeKdo),0)),\"\")","v":""},""]
[{"$f":"IFERROR(INDEX(PoljeKdo,MATCH(0,COUNTIF($A$2:A124,PoljeKdo),0)),\"\")","v":""},""]
[{"$f":"IFERROR(INDEX(PoljeKdo,MATCH(0,COUNTIF($A$2:A125,PoljeKdo),0)),\"\")","v":""},""]
[{"$f":"IFERROR(INDEX(PoljeKdo,MATCH(0,COUNTIF($A$2:A126,PoljeKdo),0)),\"\")","v":""},""]
[{"$f":"IFERROR(INDEX(PoljeKdo,MATCH(0,COUNTIF($A$2:A127,PoljeKdo),0)),\"\")","v":""},""]
[{"$f":"IFERROR(INDEX(PoljeKdo,MATCH(0,COUNTIF($A$2:A128,PoljeKdo),0)),\"\")","v":""},""]
[{"$f":"IFERROR(INDEX(PoljeKdo,MATCH(0,COUNTIF($A$2:A129,PoljeKdo),0)),\"\")","v":""},""]
[{"$f":"IFERROR(INDEX(PoljeKdo,MATCH(0,COUNTIF($A$2:A130,PoljeKdo),0)),\"\")","v":""},""]
[{"$f":"IFERROR(INDEX(PoljeKdo,MATCH(0,COUNTIF($A$2:A131,PoljeKdo),0)),\"\")","v":""},{"$f":"IF(A132=\"\",\"\",ROW())","v":""}]